[Event "CCT Julius Baer-D2 2024"]
[Site "Online"]
[Date "2024.09.27"]
[Round "1.2"]
[White "Lazavik, Denis"]
[Black "Oparin, Grigoriy"]
[Result "1-0"]
[ECO "D35"]
[WhiteElo "2758"]
[BlackElo "2677"]
[Annotator "TA"]
[PlyCount "111"]
[EventDate "2024.09.25"]
[EventType "swiss"]
[EventCountry "NET"]
[SourceTitle "playchess.com"]
[Source "ChessBase"]
[SourceQuality "1"]
[TimeControl "600+2"]

{[%evp 37,111,98,92,102,125,109,116,120,200,176,214,208,228,229,241,195,204,194,202,199,200,198,191,185,210,204,218,216,216,210,206,204,201,195,181,92,235,0,219,169,216,211,238,231,293,283,293,291,294,280,669,637,1323,1211,1164,213,203,203,197,197,622,621,583,576,535,498,416,403,29988,29989,29991,29992,29993,29994,29994,29990]} 1. d4 {[%emt 0:00:03]} Nf6 {[%emt 0:00:03]} 2. c4 {[%emt 0:00:02]} e6 {[%emt 0:00:00]} 3. Nf3 {[%emt 0:00:01]} d5 {[%emt 0:00:02]} 4. Nc3 {[%emt 0:00:02]} Nbd7 {[%emt 0:00:01]} 5. cxd5 {[%emt 0:00:03]} exd5 {[%emt 0:00:01]} 6. Bf4 {[%emt 0:00:00]} Bb4 {[%emt 0:00:02]} 7. e3 {[%emt 0:00:01]} Ne4 {[%emt 0:00:02] D35: Queen's Gambit Declined: Exchange Variation.} 8. Qc2 {[%emt 0:00:02]} g5 {[%emt 0:00:02]} 9. Be5 {[%emt 0:00:08]} Rg8 {[%emt 0:00:01]} 10. Rd1 $1 $146 {[%emt 0:00:10][%mdl 8] An important novelty.} ({Predecessor:} 10. h3 Nxe5 11. Nxe5 Qe7 12. Bb5+ Kf8 13. Bd3 f6 14. Nf3 Bf5 15. Nd2 Bxc3 16. bxc3 Re8 17. Nxe4 Bxe4 18. Bxe4 Qxe4 19. Qxe4 Rxe4 20. Ke2 Rg7 {½-½ Gustafsson,J (2620)-Warmerdam,M (2636) Bundesliga 2324 2023 (2.4)}) 10... g4 {[%emt 0:00:33]} 11. Nd2 {[%emt 0:00:03]} Nxd2 {[%emt 0:00:43]} 12. Qxh7 {[%emt 0:00:02]} Rf8 {[%emt 0:00:08]} 13. Rxd2 {[%emt 0:00:27]} Nxe5 {[%emt 0:00:02]} 14. dxe5 {[%emt 0:00:01]} c6 {[%emt 0:00:09]} 15. Be2 {[%emt 0:00:25]} Qg5 {[%emt 0:00:09]} 16. Rd4 {[%emt 0:00:52]} Ba5 {[%emt 0:00:30]} 17. Qc2 {[%emt 0:00:46]} Be6 {[%emt 0:00:27]} 18. Qa4 {[%emt 0:00:08]} Bxc3+ {[%emt 0:00:54]} 19. bxc3 {[%emt 0:00:02]} Qxe5 {[%emt 0:00:01]} 20. O-O {[%emt 0:00:26]} b5 {[%emt 0:02:20]} 21. Qa6 {[%emt 0:00:19]} Qc7 {[%emt 0:01:00]} 22. Bxg4 {[%emt 0:00:41]} Qb6 {[%emt 0:00:02]} (22... Qc8 $16 23. Qxc8+ Rxc8) 23. Qa3 $18 {[%emt 0:00:22]} c5 {[%emt 0:00:01]} 24. Rf4 {[%emt 0:00:03]} a5 {[%emt 0:00:12]} 25. Qb2 {[%emt 0:00:10]} Rb8 {[%emt 0:00:17]} 26. a3 {[%emt 0:00:12]} Ke7 {[%emt 0:00:14]} 27. Bf3 {[%emt 0:00:08]} Qd6 {[%emt 0:00:09]} 28. h4 {[%emt 0:00:26]} Qe5 {[%emt 0:00:06]} 29. Qd2 {[%emt 0:00:10]} Rb6 {[%emt 0:00:05]} 30. Rd1 {[%emt 0:00:08]} Rd8 {[%emt 0:00:06]} 31. g3 {[%emt 0:00:13]} Rbd6 {[%emt 0:00:03]} 32. Qd3 {[%emt 0:00:25]} Rb6 {[%emt 0:00:03]} 33. Rb1 {[%emt 0:00:16]} Rdb8 {[%emt 0:00:02]} 34. Qd2 {[%emt 0:00:01]} Rd8 {[%emt 0:00:08]} 35. Bg2 {[%emt 0:00:05]} Rdb8 {[%emt 0:00:02]} 36. Rd1 {[%emt 0:00:12]} ({White should play} 36. Kh2 $18) 36... Rd8 {[%emt 0:00:01]} (36... b4 $16 37. cxb4 (37. Bxd5 $2 bxc3 38. Qd3 Qxd5 $19) 37... axb4) 37. Bf3 {[%emt 0:01:00]} Rbd6 {[%emt 0:00:04]} 38. h5 {[%emt 0:00:04]} Rh8 {[%emt 0:00:04]} (38... Kf8 $142 39. Kg2 Kg8) 39. Qd3 $18 {[%emt 0:00:11]} Rb8 {[%emt 0:00:20]} 40. h6 {[%emt 0:00:14]} b4 {[%emt 0:00:07]} 41. axb4 {[%emt 0:00:04]} axb4 {[%emt 0:00:01]} 42. cxb4 {[%emt 0:00:02]} cxb4 {[%emt 0:00:00]} 43. Qb3 {[%emt 0:00:28]} d4 $2 {[%emt 0:00:31]} (43... Qc3 44. Qa2 Rh8) 44. Qb2 $18 {[%emt 0:00:02]} Qc5 {[%emt 0:00:40]} 45. exd4 {[%emt 0:00:08]} Qc3 {[%emt 0:00:00]} 46. Qxc3 $2 {[%emt 0:00:10]} (46. Qe2 b3 47. Qe5) 46... bxc3 $18 {[%emt 0:00:01]} 47. Rc1 {[%emt 0:00:01]} Rc8 {[%emt 0:00:31]} 48. h7 {[%emt 0:00:06]} Rdd8 $2 {[%emt 0:00:00]} (48... Rh8 49. Rh4 (49. Rxc3 Rxh7 50. Rc7+ Kf8 $16) 49... Bf5) 49. d5 $18 {[%emt 0:00:28]} Bd7 {[%emt 0:00:05]} 50. d6+ {[%emt 0:00:29]} Kxd6 {[%emt 0:00:05]} 51. Rxf7 {[%emt 0:00:01]} Be6 {[%emt 0:00:08]} 52. Rf6 {[%emt 0:00:06]} Rc4 {[%emt 0:00:11]} (52... Ke7 $18) 53. Rd1+ {[%emt 0:00:05]} Ke7 {[%emt 0:00:03]} 54. Rxd8 {[%emt 0:00:03]} c2 {[%emt 0:00:01]} 55. h8=Q {[%emt 0:00:03]} ({Weaker is} 55. h8=B Kxd8 56. Rxe6 (56. Rf8+ $2 Ke7 $19) 56... c1=Q+ 57. Kg2 Qb1 $14) 55... c1=Q+ {[%emt 0:00:01]} 56. Rd1 {[%emt 0:00:00]} 1-0

[Event "CCT Julius Baer-D2 2024"]
[Site "Online"]
[Date "2024.09.27"]
[Round "1.2"]
[White "Robson, Ray"]
[Black "Vidit, Santosh Gujrathi"]
[Result "1-0"]
[ECO "A34"]
[WhiteElo "2700"]
[BlackElo "2720"]
[Annotator "TA"]
[PlyCount "87"]
[EventDate "2024.09.25"]
[EventType "swiss"]
[EventCountry "NET"]
[SourceTitle "playchess.com"]
[Source "ChessBase"]
[SourceQuality "1"]
[TimeControl "600+2"]

{[%evp 13,87,14,10,7,8,12,20,21,20,10,14,16,26,19,10,11,13,12,12,0,14,-15,0,-12,-10,-2,0,-37,-40,-31,-41,-43,-57,-53,-57,-114,-16,-77,-70,-79,-56,-133,-59,-73,-68,-140,-150,-289,-281,-272,-281,-282,-271,-277,-275,-383,-383,-558,-416,-597,-315,-309,0,0,61,61,29998,230,519,516,507,0,0,0,479,466]} 1. Nf3 {[%emt 0:00:02]} Nf6 {[%emt 0:00:05]} 2. c4 {[%emt 0:00:06]} c5 {[%emt 0:00:02]} 3. Nc3 {[%emt 0:00:11]} Nc6 {[%emt 0:00:02]} 4. g3 {[%emt 0:00:09]} d5 {[%emt 0:00:07]} 5. cxd5 {[%emt 0:00:01]} Nxd5 {[%emt 0:00:00]} 6. Bg2 {[%emt 0:00:03]} Nc7 {[%emt 0:00:01]} 7. a3 {[%emt 0:00:16]} g6 {[%emt 0:00:02]} 8. h4 {[%emt 0:00:24]} Bg4 {[%emt 0:00:01]} 9. Qb3 {[%emt 0:00:15]} Bg7 {[%emt 0:01:09]} 10. Qxb7 {[%emt 0:00:22] The position is equal.} Bd7 {[%emt 0:00:01]} 11. Qb3 {[%emt 0:00:21]} Rb8 {[%emt 0:00:03]} 12. Qd1 {[%emt 0:00:06]} Be6 {[%emt 0:00:16] aiming for ...Bb3.} 13. d3 {[%emt 0:00:26]} Bb3 {[%emt 0:00:07]} 14. Qd2 {[%emt 0:00:03]} O-O {[%emt 0:00:02]} 15. h5 {[%emt 0:00:41]} Ne6 {[%emt 0:00:02]} 16. hxg6 {[%emt 0:00:18]} (16. Kf1 {feels hotter.} c4 17. Ng5 Ncd4 18. hxg6 hxg6 19. Nxe6 Nxe6 20. Bd5) 16... hxg6 {[%emt 0:00:00]} 17. O-O {[%emt 0:01:01]} (17. Ng5 {looks sharper.} Ncd4 18. Kf1 c4 19. Nxe6 Nxe6 20. Bd5) 17... Ncd4 {[%emt 0:00:34]} 18. Nxd4 {[%emt 0:00:26]} Nxd4 {[%emt 0:00:26]} 19. e3 {[%emt 0:01:05]} Ne6 {[%emt 0:00:18]} 20. a4 {[%emt 0:00:03]} Qd7 {[%emt 0:00:21][%mdl 1024] Black has compensation.} 21. Ra3 {[%emt 0:00:11]} Rfd8 {[%emt 0:00:03]} 22. Nb5 {[%emt 0:00:13]} Bd5 {[%emt 0:00:04] And now ...Bxg2 would win.} (22... Qxd3 23. Qxd3 Rxd3 24. Be4 $16 (24. Nxa7 Bc4 $14)) 23. e4 {[%emt 0:01:03]} Bc6 {[%emt 0:00:03]} 24. Qa5 {[%emt 0:00:03]} (24. Nc3 $15) 24... Rb7 {[%emt 0:02:35]} (24... a6 $17 25. Nc3 (25. Qxa6 $2 Ra8 $19) 25... Qb7 (25... Qxd3 $2 26. Nd5 $18)) 25. Be3 {[%emt 0:00:12]} (25. Bh3 $11) 25... Bxb2 $17 {[%emt 0:00:13]} 26. Rb3 {[%emt 0:00:01]} Bg7 {[%emt 0:00:03][%cal Oa7a6]} 27. Rc1 {[%emt 0:00:02]} ({White should try} 27. Bh3 $15) 27... Ra8 {[%emt 0:00:25]} (27... a6 $1 $17 {[%cal Ra6b5]} 28. Rcb1 (28. Qxa6 $2 Nc7 $19) 28... Qe8 (28... axb5 29. axb5 Rxb5 30. Rxb5 $15)) 28. Bxc5 {[%emt 0:01:01]} a6 $1 {[%emt 0:00:16]} 29. Bb6 {[%emt 0:01:35]} (29. d4 $15) 29... Rab8 $36 {[%emt 0:00:13][%mdl 2048] White is under strong pressure.} 30. Na3 {[%emt 0:00:14] [#]} (30. Ba7 $17 axb5 (30... Rxa7 31. Nxa7 Rxb3 32. Nxc6 $15) 31. Bxb8 Rxb8 32. axb5) 30... Nd4 $1 $19 {[%emt 0:00:43]} (30... Bxa4 31. Rbb1 $19) 31. Bxd4 {[%emt 0:00:02] Strongly threatening Rxb7.} Rxb3 {[%emt 0:00:01]} 32. Bxg7 {[%emt 0:00:00]} Kxg7 {[%emt 0:00:04]} 33. Nc4 {[%emt 0:00:06] Hoping for Ne5.} Rb1 {[%emt 0:00:51]} (33... Rxd3 $2 34. Qe5+ (34. Qxa6 $2 Rd1+ 35. Rxd1 Qxd1+ 36. Bf1 Bxe4 $19) 34... f6 35. Qxb8 $18) (33... Qxd3 34. Ne5 (34. Qxa6 $2 Rb1 $19) 34... Qd8 35. Qxd8 (35. Nxc6 Qxa5 36. Nxa5 Rb1 $11) 35... Rxd8 36. Nxc6 $16 (36. Rxc6 Rb1+ 37. Kh2 Rb2 $14)) 34. Rf1 {[%emt 0:00:02]} Qxd3 {[%emt 0:01:35]} (34... Bxa4 35. Ne3 $19) 35. Ne5 {[%emt 0:00:01]} (35. Qe5+ $142 Kg8 36. Ne3) 35... Qc2 {[%emt 0:00:04]} 36. Qc7 {[%emt 0:00:06]} (36. Nxc6 $142 Qxc6 37. Qd2) 36... Bxe4 {[%emt 0:00:10]} 37. Qxe7 {[%emt 0:00:02] [#]} Rxf1+ $2 {[%emt 0:00:02]} (37... Qxa4 38. Qxf7+ Kh8 39. Qf6+ (39. Nxg6+ Bxg6 40. Qxg6 Qb5 $14) 39... Kh7 40. Bxe4 Rxf1+ 41. Kxf1 Qxe4 42. Qe7+ Kg8 43. Qf7+ Kh8 44. Nxg6+ $18) ({Better is} 37... Bd5 $1 $19 38. Ng4 (38. Bxd5 $2 Rxf1+ 39. Kxf1 Qd1+ 40. Kg2 Qxd5+ 41. Nf3 Rb3 $19) 38... Qf5 (38... Qxa4 39. Qe5+ Kf8 40. Qd6+ Kg7 41. Qe5+ Kf8 42. Qd6+ Kg7 43. Qe5+ $11)) 38. Bxf1 $11 {[%emt 0:00:01]} Bd5 {[%emt 0:00:10]} (38... Qxa4 $2 {is the wrong capture.} 39. Qxf7+ (39. Nxf7 $2 Rb7 $19) 39... Kh8 40. Nd7 $18 (40. Nxg6+ Bxg6 41. Qxg6 Rf8 $11)) (38... Rf8 $11 39. Nd7 Ra8 (39... Rc8 40. Qe5+ Kh6 41. Qf4+ Kg7 42. Qf6+ Kg8 43. Qd4 $11)) 39. Nd7 $14 {[%emt 0:00:03] Dancing on a razor blade.} Rb1 $2 {[%emt 0:00:04][%mdl 8192]} (39... Qb2 $14 40. Qd6 Rc8 41. Qxd5 Rc2) 40. Qe5+ $2 {[%emt 0:00:01]} (40. Qf8+ {mates} Kh7 41. Nf6#) 40... Kg8 $18 {[%emt 0:00:01][%cal Ob1f1]} 41. Nf6+ {[%emt 0:00:01]} (41. Qxd5 Qxa4 42. Ne5 Qb3 43. Qxb3 Rxb3 44. Bxa6 Rb4 $16) 41... Kf8 {[%emt 0:00:01][%cal Ob1f1] ...Rxf1+! would now be deadly.} 42. Nd7+ $2 {[%emt 0:00:02]} (42. Qxd5 Qe2 43. Qg2 Rc1 $14) (42. Nxd5 $18 {[%cal Re5h8]} Kg8 43. Nf6+ Kg7 44. Nh5+ Kf8 45. Qh8+ Ke7 46. Qf6+ Kd7 47. Qxf7+ Kc8 48. Qe6+ Kb8 49. Qd6+ Qc7 50. Qxg6 Rxf1+ 51. Kxf1 Qc4+ 52. Kg2) 42... Kg8 $11 {[%emt 0:00:01][%cal Ob1f1] ( -> ...Rxf1+!)} 43. Nf6+ $2 {[%emt 0:00:01][%mdl 8192]} (43. Qxd5 $11 Qxa4 44. Kg2) 43... Kf8 $18 {[%emt 0:00:01][%cal Ob1f1] ...Rxf1+! is the strong threat.} 44. Nxd5 {[%emt 0:00:00] Weighted Error Value: White=0.58/Black=0.41.  Loses game:     	---       	Black=1      Missed win:     	White=1     	Black=1      Mistake:       	White=9     	Black=3      Inaccurate:     	White=3     	Black=1      OK:         	White=9     	Black=15     Best:        	White=4     	Black=2      Strong:       	---       	Black=2} (44. Qxd5 Qe2 45. Qg2 Qc4 $16) 1-0

[Event "CCT Julius Baer-D2 2024"]
[Site "Online"]
[Date "2024.09.27"]
[Round "1.2"]
[White "spicycaterpillar"]
[Black "Vidit, Santosh Gujrathi"]
[Result "1-0"]
[ECO "A34"]
[WhiteElo "2696"]
[BlackElo "2694"]
[Annotator "ChessBase"]
[PlyCount "87"]
[EventDate "2024.09.25"]
[EventType "swiss"]
[EventCountry "NET"]
[SourceTitle "playchess.com"]
[Source "ChessBase"]
[SourceQuality "1"]
[TimeControl "600+2"]

1. Nf3 {[%emt 0:00:02]} Nf6 {[%emt 0:00:05]} 2. c4 {[%emt 0:00:06]} c5 {[%emt 0:00:02]} 3. Nc3 {[%emt 0:00:11]} Nc6 {[%emt 0:00:02]} 4. g3 {[%emt 0:00:09]} d5 {[%emt 0:00:07]} 5. cxd5 {[%emt 0:00:01]} Nxd5 {[%emt 0:00:00]} 6. Bg2 {[%emt 0:00:03]} Nc7 {[%emt 0:00:01]} 7. a3 {[%emt 0:00:16]} g6 {[%emt 0:00:02]} 8. h4 {[%emt 0:00:24]} Bg4 {[%emt 0:00:01]} 9. Qb3 {[%emt 0:00:15]} Bg7 {[%emt 0:01:09]} 10. Qxb7 {[%emt 0:00:22]} Bd7 {[%emt 0:00:01]} 11. Qb3 {[%emt 0:00:21]} Rb8 {[%emt 0:00:03]} 12. Qd1 {[%emt 0:00:06]} Be6 {[%emt 0:00:16]} 13. d3 {[%emt 0:00:26]} Bb3 {[%emt 0:00:07]} 14. Qd2 {[%emt 0:00:03]} O-O {[%emt 0:00:02]} 15. h5 {[%emt 0:00:41]} Ne6 {[%emt 0:00:02]} 16. hxg6 {[%emt 0:00:18]} hxg6 {[%emt 0:00:00]} 17. O-O {[%emt 0:01:01]} Ncd4 {[%emt 0:00:34]} 18. Nxd4 {[%emt 0:00:26]} Nxd4 {[%emt 0:00:26]} 19. e3 {[%emt 0:01:05]} Ne6 {[%emt 0:00:18]} 20. a4 {[%emt 0:00:03]} Qd7 {[%emt 0:00:21]} 21. Ra3 {[%emt 0:00:11]} Rfd8 {[%emt 0:00:03]} 22. Nb5 {[%emt 0:00:13]} Bd5 {[%emt 0:00:04]} 23. e4 {[%emt 0:01:03]} Bc6 {[%emt 0:00:03]} 24. Qa5 {[%emt 0:00:03]} Rb7 {[%emt 0:02:35]} 25. Be3 {[%emt 0:00:12]} Bxb2 {[%emt 0:00:13]} 26. Rb3 {[%emt 0:00:01]} Bg7 {[%emt 0:00:03]} 27. Rc1 {[%emt 0:00:02]} Ra8 {[%emt 0:00:25]} 28. Bxc5 {[%emt 0:01:01]} a6 {[%emt 0:00:16]} 29. Bb6 {[%emt 0:01:35]} Rab8 {[%emt 0:00:13]} 30. Na3 {[%emt 0:00:14]} Nd4 {[%emt 0:00:43]} 31. Bxd4 {[%emt 0:00:02]} Rxb3 {[%emt 0:00:01]} 32. Bxg7 {[%emt 0:00:00]} Kxg7 {[%emt 0:00:04]} 33. Nc4 {[%emt 0:00:06]} Rb1 {[%emt 0:00:51]} 34. Rf1 {[%emt 0:00:02]} Qxd3 {[%emt 0:01:35]} 35. Ne5 {[%emt 0:00:01]} Qc2 {[%emt 0:00:04]} 36. Qc7 {[%emt 0:00:06]} Bxe4 {[%emt 0:00:10]} 37. Qxe7 {[%emt 0:00:02]} Rxf1+ {[%emt 0:00:02]} 38. Bxf1 {[%emt 0:00:01]} Bd5 {[%emt 0:00:10]} 39. Nd7 {[%emt 0:00:03]} Rb1 {[%emt 0:00:04]} 40. Qe5+ {[%emt 0:00:01]} Kg8 {[%emt 0:00:01]} 41. Nf6+ {[%emt 0:00:01]} Kf8 {[%emt 0:00:01]} 42. Nd7+ {[%emt 0:00:02]} Kg8 {[%emt 0:00:01]} 43. Nf6+ {[%emt 0:00:01]} Kf8 {[%emt 0:00:01]} 44. Nxd5 {[%emt 0:00:00]} 1-0

[Event "CCT Julius Baer-D2 2024"]
[Site "Online"]
[Date "2024.09.27"]
[Round "1.2"]
[White "Yakubboev, Nodirbek"]
[Black "So, Wesley"]
[Result "1-0"]
[ECO "A14"]
[WhiteElo "2663"]
[BlackElo "2831"]
[Annotator "TA"]
[PlyCount "75"]
[EventDate "2024.09.25"]
[EventType "swiss"]
[EventCountry "NET"]
[SourceTitle "playchess.com"]
[Source "ChessBase"]
[SourceQuality "1"]
[TimeControl "600+2"]

{[%evp 11,74,0,24,-33,45,47,42,-36,97,0,0,-2,69,7,15,35,53,-8,14,0,55,33,70,82,88,50,82,59,52,17,6,11,17,10,19,4,17,45,95,77,85,103,74,80,235,185,798,275,1003,989,29988,29989,29989,29990,29990,29991,29991,29992,29992,29993,29997,29998,29998,29999,29999]} 1. c4 {[%emt 0:00:03]} e6 {[%emt 0:00:08]} 2. g3 {[%emt 0:00:09]} d5 {[%emt 0:00:01]} 3. Bg2 {[%emt 0:00:00]} Nf6 {[%emt 0:00:03]} 4. Nf3 {[%emt 0:00:02]} Be7 {[%emt 0:00:01]} 5. O-O {[%emt 0:00:01]} O-O {[%emt 0:00:01]} 6. d3 {[%emt 0:00:06]} c5 {[%emt 0:00:36]} 7. Bf4 {[%emt 0:00:18] A14: Engelse Opening: 1...e6 met b3 door Wit.} (7. cxd5 $11 exd5 8. d4) 7... b6 {[%emt 0:00:56] [#] Fout (0.8)} (7... Nc6 $15) 8. e4 $1 $14 {[%emt 0:00:15] Briljant} Bb7 {[%emt 0:00:55]} (8... Nc6 9. exd5) 9. Nc3 {[%emt 0:00:53] Fout (0.8)} (9. exd5 $14 exd5 10. h3) 9... Nc6 $146 {[%emt 0:01:13] Behoudt voordeel. Fout (1.3)} (9... d4 $15 10. Nb1 Nfd7) ({Predecessor:} 9... d4 10. Nb1 Nfd7 11. e5 b5 12. cxb5 a6 13. Na3 Nb6 14. h4 N8d7 15. Re1 Nd5 {½-½ Pham,T (2444)-Sargissian,G (2660) Teplice op 17th 2024 (4)}) 10. e5 {[%emt 0:00:18] Fout (1.0)} (10. exd5 $16 exd5 11. d4) 10... Ne8 $1 $11 {[%emt 0:00:06] Sterk} 11. Qe2 {[%emt 0:01:10]} Qd7 {[%emt 0:00:35] Fout (0.7)} (11... Nc7 $11) 12. Rad1 {[%emt 0:00:26] Wit is actiever. Fout (0.6)} (12. Rfd1 $1 $14) 12... Nd4 {[%emt 0:00:37] OK} 13. Nxd4 {[%emt 0:00:15] OK} cxd4 {[%emt 0:00:00]} 14. Nb1 {[%emt 0:00:45] Fout (0.6)} ({Beter is} 14. Nb5 $14) 14... Nc7 {[%emt 0:00:35]} 15. Nd2 {[%emt 0:00:30][%cal Bb1d2,Bd2b3,Bb3d4][%mdl 32] EV=20.76. Goes to d4 (dbg))} Qa4 {[%emt 0:00:26] Fout (0.6)} ({Zwart zou moeten proberen} 15... Rad8 $11) 16. Nb3 {[%emt 0:00:32]} (16. Qg4 $5 {is scherper.} Rfb8 17. Rc1 Qxa2 18. Bh6) 16... Qxa2 {[%emt 0:00:25] Onnauwkeurig} 17. Nxd4 {[%emt 0:00:05] Ra1 is de sterke dreiging. OK} Qa4 {[%emt 0:00:01] OK} 18. h4 {[%emt 0:00:20] Onnauwkeurig} a5 {[%emt 0:00:42] OK} 19. h5 {[%emt 0:00:19]} h6 {[%emt 0:00:05] Beste} 20. g4 {[%emt 0:01:02] Onnauwkeurig} Rad8 {[%emt 0:00:10]} 21. b3 {[%emt 0:01:31] OK} Qe8 {[%emt 0:00:22] OK} 22. Be3 {[%emt 0:00:16] OK} Ba8 {[%emt 0:00:47] OK} 23. f4 {[%emt 0:00:06]} Bc5 {[%emt 0:00:27]} 24. g5 {[%emt 0:00:06]} hxg5 {[%emt 0:00:15] Fout (0.5)} ({Zwart zou moeten spelen} 24... Rd7 $14) 25. fxg5 $16 {[%emt 0:00:02]} dxc4 {[%emt 0:00:14]} 26. dxc4 {[%emt 0:00:00]} Bxg2 {[%emt 0:00:09] OK} 27. Kxg2 {[%emt 0:00:12] met als doel voor h6.} ({Veel slechter is} 27. Qxg2 a4 $11) 27... a4 $2 {[%emt 0:00:02] Vermijdt mogelijk problemen. Dit kost Zwart de partij. Fout (1.6)} (27... Bxd4 $16 28. Bxd4 (28. Rxd4 Rxd4 29. Bxd4 b5 $18) 28... a4) 28. h6 $18 {[%emt 0:00:28] Beste (Gemakkelijk)} axb3 $2 {[%emt 0:00:21] Fout (6.1)} (28... Bxd4 29. Bxd4 axb3) 29. Qf3 $2 {[%emt 0:00:16] Fout (5.2)} (29. Nxb3 Qc6+ 30. Qf3 Qxf3+ 31. Kxf3 Bxe3 32. hxg7 (32. Kxe3 Rxd1 33. Rxd1 b5 $11) 32... Kxg7 33. Rxd8 Rxd8 $11) (29. hxg7 {Qh5 zou dodelijk zijn nu.} Kxg7 30. Qf3) 29... Bxd4 $2 {[%emt 0:00:08] Fout (7.3)} (29... gxh6 30. gxh6 Kh7) 30. hxg7 {[%emt 0:00:25]} (30. Bxd4 gxh6 31. Bxb6 (31. Qxb3 Qc6+ 32. Kh3 h5 $11) (31. gxh6 Kh7 $11) 31... Qe7 $11 (31... Rxd1 32. Rxd1 Qe7 33. gxh6 $11)) 30... Kxg7 {[%emt 0:00:09] [#] Onnauwkeurig} 31. Qf6+ $1 {[%emt 0:00:05] Wit zet mat.} ({Zwakker is} 31. Bxd4 Qe7 $14) 31... Kg8 {[%emt 0:00:01] [#]} 32. Rh1 $1 {[%emt 0:00:05][%csl Gf6][%cal Rh1h8]} Qc6+ {[%emt 0:00:00]} 33. Kg3 {[%emt 0:00:02][%csl Gh1][%cal Rf6h8]} Bxe5+ {[%emt 0:00:04]} 34. Qxe5 {[%emt 0:00:01][%csl Ge5][%cal Rh1h8]} f6 {[%emt 0:00:03]} 35. gxf6 {[%emt 0:00:01]} Rxd1 {[%emt 0:00:30]} 36. Qg5+ {[%emt 0:00:01]} Kf7 {[%emt 0:00:01]} 37. Qg7+ {[%emt 0:00:01]} Ke8 {[%emt 0:00:00]} 38. Qe7# {[%emt 0:00:00] Blunder waarde: Wit=0.40/Zwart=0.81.  Fout:        	Wit=5      	Zwart=8      Onnauwkeurig:    	Wit=2      	Zwart=2      OK:         	Wit=4      	Zwart=6      Beste:        	Wit=1      	Zwart=1      Sterk:        	---       	Zwart=1      Briljant:      	Wit=1      	---} 1-0

[Event "CCT Julius Baer-D2 2024"]
[Site "Online"]
[Date "2024.09.27"]
[Round "1.2"]
[White "Durarbayli, Vasif"]
[Black "Anton Guijarro, David"]
[Result "1-0"]
[ECO "B12"]
[WhiteElo "2654"]
[BlackElo "2662"]
[Annotator "ChessBase"]
[PlyCount "131"]
[EventDate "2024.09.25"]
[EventType "swiss"]
[EventCountry "NET"]
[SourceTitle "playchess.com"]
[Source "ChessBase"]
[SourceQuality "1"]
[TimeControl "600+2"]

1. e4 {[%emt 0:00:02]} c6 {[%emt 0:00:03]} 2. d4 {[%emt 0:00:02]} d5 {[%emt 0:00:01]} 3. e5 {[%emt 0:00:01]} Bf5 {[%emt 0:00:01]} 4. Nf3 {[%emt 0:00:01]} e6 {[%emt 0:00:02]} 5. Be2 {[%emt 0:00:01]} Nd7 {[%emt 0:00:02]} 6. O-O {[%emt 0:00:02]} Ne7 {[%emt 0:00:02]} 7. Nbd2 {[%emt 0:00:03]} c5 {[%emt 0:00:05]} 8. c4 {[%emt 0:00:08]} Nc6 {[%emt 0:00:02]} 9. Nb3 {[%emt 0:00:55]} dxc4 {[%emt 0:00:16]} 10. Bxc4 {[%emt 0:00:03]} a6 {[%emt 0:01:20]} 11. Bg5 {[%emt 0:02:19]} Be7 {[%emt 0:00:24]} 12. Bxe7 {[%emt 0:00:18]} Qxe7 {[%emt 0:00:00]} 13. Nxc5 {[%emt 0:00:02]} Nxc5 {[%emt 0:00:03]} 14. dxc5 {[%emt 0:00:00]} Qxc5 {[%emt 0:01:07]} 15. Rc1 {[%emt 0:01:15]} Qe7 {[%emt 0:00:12]} 16. Nd4 {[%emt 0:00:29]} Nxd4 {[%emt 0:00:33]} 17. Qxd4 {[%emt 0:00:02]} O-O {[%emt 0:00:00]} 18. Rfd1 {[%emt 0:00:24]} Rfd8 {[%emt 0:00:09]} 19. Qb6 {[%emt 0:00:45]} Be4 {[%emt 0:00:16]} 20. Bf1 {[%emt 0:00:32]} Rxd1 {[%emt 0:00:08]} 21. Rxd1 {[%emt 0:00:00]} Bd5 {[%emt 0:00:02]} 22. Rc1 {[%emt 0:00:10]} Qg5 {[%emt 0:00:39]} 23. Qc7 {[%emt 0:00:07]} h5 {[%emt 0:00:04]} 24. a3 {[%emt 0:00:26]} h4 {[%emt 0:00:06]} 25. h3 {[%emt 0:00:13]} g6 {[%emt 0:00:08]} 26. b4 {[%emt 0:00:10]} Kg7 {[%emt 0:00:03]} 27. Rc3 {[%emt 0:00:17]} Rh8 {[%emt 0:00:12]} 28. Re3 {[%emt 0:00:27]} Rh5 {[%emt 0:00:16]} 29. Qc3 {[%emt 0:00:03]} Qf4 {[%emt 0:00:10]} 30. Be2 {[%emt 0:00:10]} Rf5 {[%emt 0:00:23]} 31. Bf3 {[%emt 0:00:01]} Bxf3 {[%emt 0:00:10]} 32. Rxf3 {[%emt 0:00:17]} Qxe5 {[%emt 0:00:05]} 33. Kf1 {[%emt 0:00:11]} Kf6 {[%emt 0:00:57]} 34. Rxf5+ {[%emt 0:00:04]} gxf5 {[%emt 0:00:29]} 35. Qc8 {[%emt 0:00:26]} Qa1+ {[%emt 0:00:03]} 36. Ke2 {[%emt 0:00:01]} Qb2+ {[%emt 0:00:04]} 37. Ke1 {[%emt 0:00:17]} Qb1+ {[%emt 0:00:14]} 38. Kd2 {[%emt 0:00:01]} Qb2+ {[%emt 0:00:51]} 39. Ke1 {[%emt 0:00:02]} Qe5+ {[%emt 0:00:03]} 40. Kf1 {[%emt 0:00:01]} Qb5+ {[%emt 0:00:07]} 41. Kg1 {[%emt 0:00:08]} Ke7 {[%emt 0:00:18]} 42. Qc7+ {[%emt 0:00:16]} Qd7 {[%emt 0:00:01]} 43. Qc4 {[%emt 0:00:01]} Qd1+ {[%emt 0:00:05]} 44. Kh2 {[%emt 0:00:01]} Qd6+ {[%emt 0:00:01]} 45. Kg1 {[%emt 0:00:00]} f4 {[%emt 0:00:02]} 46. Qc8 {[%emt 0:00:11]} b5 {[%emt 0:00:46]} 47. Qh8 {[%emt 0:00:01]} Qd1+ {[%emt 0:00:12]} 48. Kh2 {[%emt 0:00:01]} Qd2 {[%emt 0:00:05]} 49. Qxh4+ {[%emt 0:00:00]} Kf8 {[%emt 0:00:09]} 50. Qh8+ {[%emt 0:00:02]} Ke7 {[%emt 0:00:01]} 51. Qh4+ {[%emt 0:00:01]} Kf8 {[%emt 0:00:01]} 52. Qh8+ {[%emt 0:00:05]} Ke7 {[%emt 0:00:01]} 53. f3 {[%emt 0:00:04]} Qe1 {[%emt 0:00:09]} 54. Qg7 {[%emt 0:00:02]} e5 {[%emt 0:00:03]} 55. Qg5+ {[%emt 0:00:03]} f6 {[%emt 0:00:01]} 56. Qg7+ {[%emt 0:00:01]} Ke6 {[%emt 0:00:00]} 57. Qg4+ {[%emt 0:00:01]} Kd5 {[%emt 0:00:06]} 58. h4 {[%emt 0:00:01]} f5 {[%emt 0:00:02]} 59. Qg5 {[%emt 0:00:04]} Kd4 {[%emt 0:00:01]} 60. h5 {[%emt 0:00:01]} Ke3 {[%emt 0:00:03]} 61. h6 {[%emt 0:00:04]} e4 {[%emt 0:00:01]} 62. fxe4 {[%emt 0:00:04]} fxe4 {[%emt 0:00:00]} 63. h7 {[%emt 0:00:01]} Ke2 {[%emt 0:00:05]} 64. h8=Q {[%emt 0:00:02]} f3 {[%emt 0:00:01]} 65. gxf3 {[%emt 0:00:02]} exf3 {[%emt 0:00:02]} 66. Qhe5+ {[%emt 0:00:01]} 1-0